bitfinex-derivatives/quotes_SOLF0:USTF0_20241206
["timestamp","ask_amount","ask_price","bid_price","bid_amount"]
[1733505985427,6.4306004,239.32,239.23,6.4306004]
[1733505985629,7.632203,239.31,239.23,6.4306004]
[1733505985820,7.632203,239.3,239.23,6.4306004]
[1733505986024,2.0872,239.25,239.23,6.4306004]
[1733505987622,2.0875,239.22,239.21,6.4306004]
[1733505988223,2.0879,239.17,239.16,0.5895]
[1733505988621,9.72487427,239.17,239.16,0.5895]
[1733505989423,2.0882,239.14,239.13,6.4306004]
[1733505989623,9.72517427,239.14,239.13,6.4306004]
[1733505989829,7.63697427,239.14,239.09,6.4306004]
[1733505990031,2.0885,239.1,239.09,6.4306004]
[1733505990226,9.72547427,239.1,239.09,6.4306004]
[1733505991427,2.0885,239.1,239.09,6.4306004]
[1733505993632,2.14,239.17,239.09,6.4306004]
[1733505993935,7.58706274,239.16,239.06,2.14]
[1733505994126,6.4306004,239.24,239.07,1.3257]
[1733505994333,2.0879,239.18,239.07,1.3257]
[1733505994539,3.3918,239.26,239.14,2.0881]
[1733505994730,7.58238607,239.25,239.14,2.14]
[1733505994933,2.0876,239.21,239.14,2.14]
[1733505995135,2.0876,239.21,239.15,1.3646]
[1733505995431,2.0874,239.23,239.15,1.3646]
[1733505995632,2.0874,239.23,239.2,6.4306004]
[1733505995834,6.4306004,239.28,239.2,6.4306004]
[1733505996035,7.5809762,239.27,239.2,6.4306004]
[1733505996230,7.5809762,239.26,239.2,6.4306004]
[1733505996431,6.4306004,239.28,239.2,6.4306004]
[1733505996632,2.0875,239.22,239.2,6.4306004]
[1733505997535,6.4306004,239.28,239.2,6.4306004]
[1733505997936,3.4066,239.33,239.24,6.4306004]
[1733505998242,2.0871,239.26,239.24,6.4306004]
[1733506002844,6.4306004,239.29,239.2,2.14]
[1733506003033,3.4066,239.33,239.2,2.14]
[1733506003034,6.4306004,239.27,239.2,2.14]
[1733506003541,7.58140088,239.26,239.2,2.14]
[1733506003741,7.58140088,239.25,239.2,2.14]
[1733506003942,7.58140088,239.24,239.2,2.14]
[1733506004244,7.58140088,239.23,239.2,2.14]
[1733506004444,7.58140088,239.22,239.2,2.14]
[1733506004645,7.58140088,239.21,239.2,2.14]
[1733506006548,7.58140088,239.21,239.2,8.5706004]
[1733506007844,6.4306004,239.31,239.2,8.5706004]
[1733506008052,7.57984416,239.3,239.24,6.4306004]
[1733506008351,7.57984416,239.29,239.24,6.4306004]
[1733506008542,7.57984416,239.28,239.24,6.4306004]
[1733506008848,7.57984416,239.27,239.24,6.4306004]
[1733506009047,7.57984416,239.26,239.24,6.4306004]
[1733506009239,7.57984416,239.25,239.24,6.4306004]
[1733506011152,7.57984416,239.25,239.22,6.4306004]
[1733506011350,7.57984416,239.24,239.22,6.4306004]
[1733506011550,2.0871,239.26,239.22,6.4306004]
[1733506012347,2.087,239.28,239.24,6.4306004]
[1733506012658,7.6972004,239.33,239.25,6.4306004]
[1733506012850,7.57944747,239.32,239.25,6.4306004]
[1733506013152,7.57944747,239.31,239.25,6.4306004]
[1733506013354,7.6972004,239.33,239.25,6.4306004]
[1733506013655,7.57938603,239.32,239.25,6.4306004]
[1733506013857,2.0869,239.29,239.25,6.4306004]
[1733506015652,2.0869,239.29,239.25,8.5706004]
[1733506016255,2.0868,239.31,239.25,8.5706004]
[1733506016451,6.4306004,239.35,239.25,8.5706004]
[1733506016654,7.58002473,239.34,239.25,8.5706004]
[1733506016862,7.58002473,239.33,239.25,8.5706004]
[1733506017061,7.58002473,239.32,239.25,8.5706004]
[1733506017261,7.58002473,239.31,239.25,8.5706004]
[1733506017456,2.0869,239.29,239.25,8.5706004]
[1733506021459,2.087,239.28,239.25,8.5706004]
[1733506021662,6.4306004,239.33,239.25,8.5706004]
[1733506021857,2.14,239.36,239.22,8.5706004]
[1733506021858,6.4306004,239.31,239.22,8.5706004]
[1733506022055,7.58123381,239.3,239.22,8.5706004]
[1733506022460,2.087,239.27,239.24,6.4306004]
[1733506026664,7.58257153,239.26,239.24,6.4306004]
[1733506026869,2.087,239.27,239.24,6.4306004]
[1733506027078,7.58253637,239.26,239.24,6.4306004]
[1733506027374,2.087,239.27,239.24,6.4306004]
[1733506027576,7.58282795,239.26,239.24,6.4306004]
[1733506027876,2.087,239.27,239.24,6.4306004]
[1733506028076,7.5828523,239.26,239.24,6.4306004]
[1733506028272,2.087,239.27,239.24,6.4306004]
[1733506028470,7.58301084,239.26,239.24,6.4306004]
[1733506028665,2.087,239.27,239.24,6.4306004]
[1733506028870,7.58301084,239.26,239.24,6.4306004]
[1733506029076,2.087,239.27,239.24,6.4306004]
[1733506029274,7.58298127,239.26,239.24,6.4306004]
[1733506029473,2.087,239.27,239.24,6.4306004]
[1733506029674,7.58315458,239.26,239.24,6.4306004]
[1733506029875,2.087,239.27,239.24,6.4306004]
[1733506030078,7.58315458,239.26,239.24,6.4306004]
[1733506030268,2.087,239.27,239.24,6.4306004]
[1733506030474,7.58338944,239.26,239.24,6.4306004]
[1733506030674,2.087,239.27,239.24,6.4306004]
[1733506032279,2.0873,239.24,239.21,6.4306004]
[1733506035276,6.4306004,239.28,239.19,6.4306004]
[1733506035470,2.14,239.3,239.19,6.4306004]
[1733506035471,6.4306004,239.26,239.19,6.4306004]
[1733506035671,6.4306004,239.26,239.17,6.4306004]
[1733506035875,2.0878,239.18,239.17,6.4306004]
[1733506036073,2.14,239.3,239.17,6.4306004]
[1733506036372,6.4306004,239.27,239.19,6.4306004]
[1733506036573,2.0876,239.2,239.19,6.4306004]
[1733506036775,6.4306004,239.25,239.17,6.4306004]
[1733506036980,7.59564307,239.24,239.17,6.4306004]
[1733506037178,7.59564307,239.23,239.17,6.4306004]
[1733506037378,7.59564307,239.23,239.15,1.3646]
[1733506037379,2.0878,239.18,239.15,6.4306004]
[1733506039079,2.0879,239.18,239.15,6.4306004]
[1733506039482,2.0879,239.18,239.17,6.4306004]
[1733506039874,2.0877,239.2,239.17,6.4306004]
[1733506040085,2.14,239.24,239.19,6.4306004]
[1733506040283,7.60680508,239.23,239.19,6.4306004]
[1733506040582,6.4306004,239.21,239.14,2.14]
[1733506040879,7.60738035,239.2,239.14,2.14]
[1733506041087,7.60738035,239.19,239.1,1.3087]
[1733506041280,7.60738035,239.18,239.12,6.4306004]
[1733506041481,7.60738035,239.17,239.12,6.4306004]
[1733506041785,2.0883,239.14,239.12,6.4306004]
[1733506042182,6.4306004,239.19,239.12,6.4306004]
[1733506042486,7.60444687,239.18,239.1,6.4306004]
[1733506042679,7.60444687,239.17,239.1,6.4306004]
[1733506042882,2.0883,239.13,239.1,6.4306004]
[1733506043683,2.0883,239.13,239.12,6.4306004]
[1733506057789,2.0884,239.12,239.11,6.4306004]
[1733506058889,2.0878,239.19,239.11,6.4306004]
[1733506059090,9.0516004,239.22,239.14,6.4306004]
[1733506059288,7.57930917,239.21,239.14,6.4306004]
[1733506059497,2.0877,239.2,239.14,6.4306004]
[1733506059696,9.0516004,239.22,239.14,6.4306004]
[1733506060598,2.0881,239.15,239.14,6.4306004]
[1733506060995,2.0881,239.15,239.12,6.4306004]
[1733506062797,6.4306004,239.18,239.1,6.4306004]
[1733506063098,2.14,239.17,239.1,6.4306004]
[1733506063999,2.14,239.17,239.05,3.5226]
[1733506064000,14.01362669,239.16,239.05,3.5226]
[1733506064201,2.0886,239.09,239.08,6.4306004]
[1733506064996,2.0885,239.1,239.08,6.4306004]
[1733506066100,2.0886,239.09,239.08,6.4306004]
[1733506066295,6.4306004,239.16,239.08,6.4306004]
[1733506066498,7.58363774,239.15,239.08,6.4306004]
[1733506066699,6.4306004,239.16,239.08,6.4306004]
[1733506066700,7.58363774,239.14,239.08,6.4306004]
[1733506066898,6.4306004,239.16,239.08,6.4306004]
[1733506067093,2.0884,239.13,239.08,6.4306004]
[1733506067299,6.4306004,239.16,239.08,6.4306004]
[1733506067501,7.58410518,239.15,239.08,6.4306004]
[1733506067692,7.58410518,239.14,239.08,6.4306004]
[1733506067898,2.14,239.17,239.08,6.4306004]
[1733506068099,7.58410517,239.16,239.08,6.4306004]
[1733506068403,7.58410517,239.15,239.08,6.4306004]
[1733506068703,7.58410517,239.14,239.08,6.4306004]
[1733506069002,2.0887,239.1,239.08,6.4306004]
[1733506070096,2.0887,239.1,239.06,2.0889]
[1733506070097,2.14,239.17,239.06,2.0889]
[1733506070302,2.0887,239.09,239.08,6.4306004]
[1733506070504,6.4306004,239.16,239.05,1.3826]
[1733506070704,6.4306004,239.14,239.05,6.4306004]
[1733506070905,7.58718201,239.13,239.05,6.4306004]
[1733506071105,6.4306004,239.14,239.05,6.4306004]
[1733506072703,6.4306004,239.1,238.97,2.0897]
[1733506072898,6.4306004,239.1,239.01,6.4306004]
[1733506072899,8.5706004,239.1,239.01,6.4306004]
[1733506073298,2.14,239.1,239.03,6.4306004]
[1733506073704,1.3802,239.13,239.07,6.4306004]
[1733506073906,2.14,239.15,239.09,6.4306004]
[1733506074108,2.0886,239.11,239.09,6.4306004]
[1733506074502,4.1746,239.25,239.09,6.4306004]
[1733506074503,2.0884,239.13,239.09,6.4306004]
[1733506074708,2.14,239.17,239.11,6.4306004]
[1733506075506,2.0881,239.16,239.11,6.4306004]
[1733506075708,2.14,239.17,239.11,6.4306004]
[1733506076205,2.14,239.22,239.15,6.4306004]
[1733506076509,7.59932416,239.21,239.15,6.4306004]
[1733506076805,2.0878,239.19,239.15,6.4306004]
[1733506077009,2.14,239.24,239.15,6.4306004]
[1733506077200,14.02944594,239.23,239.15,6.4306004]
[1733506077401,7.59884554,239.22,239.15,6.4306004]
[1733506078199,7.59884554,239.22,239.11,2.14]
[1733506078200,7.59884554,239.22,239.17,6.4306004]
[1733506078504,6.4306004,239.26,239.19,6.4306004]
[1733506078705,7.60280976,239.25,239.19,6.4306004]
[1733506078905,6.4306004,239.26,239.19,6.4306004]
[1733506078906,7.60280976,239.24,239.19,6.4306004]
[1733506079100,2.0876,239.21,239.17,6.4306004]
[1733506079305,7.60280976,239.2,239.16,2.14]
[1733506079509,7.60280976,239.19,239.16,2.14]
[1733506079703,7.60280976,239.18,239.16,2.14]
[1733506080002,6.4306004,239.24,239.16,2.14]
[1733506080207,6.4306004,239.22,239.11,2.14]
[1733506080409,7.60468178,239.21,239.14,6.4306004]
[1733506080813,2.0877,239.19,239.14,6.4306004]
[1733506081109,7.60468178,239.18,239.14,6.4306004]
[1733506081306,6.4306004,239.22,239.14,6.4306004]
[1733506081307,7.60468178,239.17,239.14,6.4306004]
[1733506081510,7.60468178,239.16,239.14,6.4306004]
[1733506081711,6.4306004,239.22,239.14,6.4306004]
[1733506081912,2.0877,239.2,239.16,6.4306004]
[1733506082111,7.60826784,239.19,239.18,6.4306004]
[1733506083406,7.60826784,239.19,239.1,1.3769]
[1733506083606,7.60826784,239.18,239.13,6.4306004]
[1733506083912,7.60826784,239.17,239.1,3.5169]
[1733506084107,6.4306004,239.25,239.1,3.5169]
[1733506084307,7.60785571,239.24,239.18,6.4306004]
[1733506084513,7.60785571,239.23,239.18,6.4306004]
[1733506084709,7.60785571,239.22,239.18,6.4306004]
[1733506084911,7.60785571,239.21,239.18,6.4306004]
[1733506085110,7.60785571,239.2,239.18,6.4306004]
[1733506085313,7.60785571,239.19,239.18,6.4306004]
[1733506085919,0.50213,239.27,239.18,6.4306004]
[1733506086118,0.50213,239.27,239.21,6.4306004]
[1733506086815,2.0873,239.24,239.21,6.4306004]
[1733506087022,0.50213,239.27,239.21,6.4306004]
[1733506087828,2.0874,239.23,239.21,6.4306004]
[1733506088022,0.50213,239.27,239.21,6.4306004]
[1733506088521,2.0873,239.25,239.21,6.4306004]
[1733506089026,2.0873,239.24,239.21,6.4306004]
[1733506090028,0.50213,239.27,239.2,2.14]
[1733506090225,6.4306004,239.26,239.2,2.14]
[1733506090425,6.4306004,239.26,239.18,6.4306004]
[1733506090729,2.0876,239.21,239.16,6.4306004]
[1733506090924,2.64213,239.27,239.18,6.4306004]
[1733506090925,6.4306004,239.26,239.18,6.4306004]
[1733506091129,2.64213,239.27,239.2,6.4306004]
[1733506091331,2.0872,239.25,239.2,6.4306004]
[1733506091528,0.50213,239.27,239.2,6.4306004]
[1733506092931,2.0874,239.24,239.2,6.4306004]
[1733506093434,2.0874,239.23,239.2,6.4306004]
[1733506094028,2.0874,239.23,239.16,2.14]
[1733506094029,6.4306004,239.26,239.18,6.4306004]
[1733506095633,2.0875,239.22,239.18,6.4306004]
[1733506097035,7.37233643,239.21,239.18,6.4306004]
[1733506097235,2.0875,239.22,239.18,6.4306004]
[1733506097437,7.37203732,239.21,239.18,6.4306004]
[1733506097637,2.0876,239.21,239.18,6.4306004]
[1733506097827,6.4306004,239.26,239.18,6.4306004]
[1733506098026,7.37155925,239.25,239.18,6.4306004]
[1733506098227,6.4306004,239.26,239.18,6.4306004]
[1733506098228,7.37155925,239.24,239.18,6.4306004]
[1733506098430,7.37155925,239.23,239.18,6.4306004]
[1733506098636,6.4306004,239.26,239.18,6.4306004]
[1733506098830,7.37089607,239.25,239.18,6.4306004]
[1733506099139,7.37089607,239.24,239.18,6.4306004]
[1733506099337,9.45829607,239.23,239.18,6.4306004]
[1733506099543,2.0874,239.23,239.18,6.4306004]
[1733506099837,7.3704436,239.22,239.18,6.4306004]
[1733506100038,6.4306004,239.26,239.18,6.4306004]
[1733506100338,2.0874,239.23,239.2,6.4306004]
[1733506100537,0.30552,239.33,239.22,6.4306004]
[1733506100833,13.80045369,239.32,239.24,6.4306004]
[1733506101039,7.36985329,239.31,239.24,6.4306004]
[1733506101230,7.36985329,239.3,239.24,6.4306004]
[1733506101430,2.0871,239.27,239.24,6.4306004]
[1733506103443,6.4306004,239.3,239.22,8.5706004]
[1733506104345,2.0872,239.26,239.22,8.5706004]
[1733506104545,2.0872,239.26,239.22,2.14]
[1733506104746,2.0872,239.26,239.22,8.5706004]
[1733506108348,2.0874,239.23,239.22,6.4306004]
[1733506109649,2.44552,239.33,239.22,6.4306004]
[1733506109848,7.36253103,239.32,239.24,6.4306004]
[1733506110048,7.36253103,239.31,239.24,6.4306004]
[1733506110347,6.7361204,239.33,239.24,6.4306004]
[1733506110544,7.36265832,239.32,239.24,6.4306004]
[1733506110840,7.36265832,239.31,239.24,6.4306004]
[1733506111048,6.7361204,239.33,239.24,6.4306004]
[1733506111246,7.36263245,239.32,239.24,6.4306004]
[1733506111446,0.30552,239.33,239.26,6.4306004]
[1733506111842,2.0868,239.3,239.26,6.4306004]
[1733506112347,2.0867,239.31,239.26,6.4306004]
[1733506113849,2.0867,239.31,239.28,6.4306004]
[1733506116653,9.44998075,239.3,239.28,6.4306004]
[1733506116849,2.0868,239.3,239.28,6.4306004]
[1733506118350,7.37038454,239.29,239.28,6.4306004]
[1733506121151,7.37038454,239.29,239.25,2.14]
[1733506121351,7.37038454,239.28,239.26,6.4306004]
[1733506121546,7.37038454,239.29,239.27,6.4306004]
[1733506121752,2.0868,239.3,239.27,6.4306004]
[1733506121950,7.37808153,239.29,239.27,6.4306004]
[1733506122151,7.37931836,239.28,239.27,6.4306004]
[1733506122554,2.0868,239.3,239.27,6.4306004]
[1733506122751,7.37859052,239.29,239.25,2.14]
[1733506123063,2.0865,239.33,239.26,2.6391]
[1733506123256,2.0865,239.33,239.32,6.4306004]
[1733506123448,9.46415272,239.33,239.32,6.4306004]
[1733506123644,2.0865,239.33,239.32,6.4306004]
[1733506127558,6.4306004,239.37,239.26,2.6391]
[1733506127748,6.4306004,239.35,239.25,2.14]
[1733506127950,7.37492805,239.34,239.27,6.4306004]
[1733506128177,7.37492805,239.34,239.29,6.4306004]
[1733506128357,6.4306004,239.37,239.29,6.4306004]
[1733506128555,7.37649585,239.36,239.29,6.4306004]
[1733506128757,7.37649585,239.35,239.29,6.4306004]
[1733506129052,7.37649585,239.34,239.29,6.4306004]
[1733506129256,6.4306004,239.37,239.29,6.4306004]
[1733506129457,7.37716643,239.36,239.29,6.4306004]
[1733506129759,2.0866,239.32,239.29,6.4306004]
[1733506129958,6.4306004,239.37,239.25,2.14]
[1733506130154,2.0867,239.31,239.25,2.14]
[1733506130355,2.0867,239.31,239.29,6.4306004]
[1733506134261,2.0866,239.32,239.29,6.4306004]
[1733506134462,2.0866,239.32,239.31,6.4306004]
[1733506136057,2.0865,239.33,239.31,6.4306004]
[1733506136463,6.4306004,239.39,239.31,6.4306004]
[1733506136667,7.3786433,239.38,239.31,6.4306004]
[1733506136963,13.8092437,239.37,239.31,6.4306004]
[1733506137261,7.3786433,239.36,239.31,6.4306004]
[1733506138666,7.3786433,239.35,239.31,6.4306004]
[1733506138865,7.3786433,239.34,239.31,6.4306004]
[1733506139066,6.4306004,239.39,239.31,6.4306004]
[1733506139067,7.3786433,239.33,239.31,6.4306004]
[1733506139367,6.4306004,239.39,239.31,6.4306004]
[1733506139368,9.4652433,239.32,239.31,6.4306004]
[1733506139663,7.3786433,239.32,239.31,6.4306004]
[1733506139859,7.3786433,239.32,239.29,6.4306004]
[1733506140068,7.3786433,239.31,239.29,6.4306004]
[1733506140257,2.0865,239.33,239.29,6.4306004]
[1733506140461,9.46613784,239.32,239.29,6.4306004]
[1733506140666,7.37953784,239.31,239.29,6.4306004]
[1733506140867,2.0866,239.32,239.29,6.4306004]
[1733506141066,7.37944806,239.31,239.29,6.4306004]
[1733506141264,2.0866,239.32,239.29,6.4306004]
[1733506141462,7.3802901,239.31,239.29,6.4306004]
[1733506141764,2.0866,239.32,239.29,6.4306004]
[1733506142067,7.3803317,239.31,239.29,6.4306004]
[1733506142267,9.4671317,239.3,239.29,6.4306004]
[1733506143363,9.4671317,239.3,239.27,6.4306004]
[1733506143560,9.47021642,239.29,239.27,6.4306004]
[1733506143862,7.38331642,239.28,239.27,6.4306004]
[1733506144362,9.47021642,239.28,239.27,6.4306004]
[1733506146967,9.47021642,239.28,239.25,2.14]
[1733506146968,2.0869,239.28,239.25,2.14]
[1733506147160,6.4306004,239.27,239.03,4.14057196]
[1733506147361,6.4306004,239.27,239.2,6.4306004]
[1733506147362,7.39109559,239.26,239.2,6.4306004]
[1733506147564,6.4306004,239.29,239.22,6.4306004]
[1733506147764,7.3909951,239.28,239.22,6.4306004]
[1733506147964,7.3909951,239.27,239.22,6.4306004]
[1733506148170,2.0874,239.24,239.22,6.4306004]
[1733506148865,2.5367,239.33,239.22,6.4306004]
[1733506149064,7.3899419,239.32,239.28,6.4306004]
[1733506149272,7.3899419,239.31,239.28,6.4306004]
[1733506149467,7.3899419,239.3,239.28,6.4306004]
[1733506149668,2.0866,239.32,239.28,6.4306004]
[1733506149970,2.5367,239.33,239.28,6.4306004]
[1733506149971,7.38985362,239.31,239.28,6.4306004]
[1733506150271,7.38999463,239.3,239.28,6.4306004]
[1733506150468,2.0868,239.3,239.28,6.4306004]
[1733506151373,2.0867,239.32,239.28,6.4306004]
[1733506151569,1.2713,239.33,239.28,6.4306004]
[1733506151768,7.39099611,239.32,239.28,6.4306004]
[1733506151970,2.0866,239.32,239.28,6.4306004]
[1733506152170,7.39123906,239.31,239.28,6.4306004]
[1733506152377,2.0866,239.32,239.28,6.4306004]
[1733506153068,2.0864,239.34,239.3,6.4306004]
[1733506153273,2.0864,239.34,239.33,6.4306004]
[1733506153469,9.47895387,239.34,239.31,6.4306004]
[1733506153673,7.39255387,239.33,239.25,2.14]
[1733506153869,7.39255387,239.33,239.31,6.4306004]
[1733506154172,7.39255387,239.32,239.31,6.4306004]
[1733506154970,7.39255387,239.32,239.25,2.14]
[1733506154971,2.0867,239.31,239.29,6.4306004]
[1733506155172,7.39255387,239.3,239.29,6.4306004]
[1733506155674,7.39255387,239.3,239.25,2.14]
[1733506155871,7.39255387,239.3,239.28,6.4306004]
[1733506159475,3.4747,239.4,239.28,6.4306004]
[1733506159666,7.39620439,239.39,239.32,6.4306004]
[1733506159867,7.39620439,239.38,239.34,6.4306004]
[1733506160175,7.39620439,239.37,239.34,6.4306004]
[1733506160575,7.39620439,239.37,239.31,2.12]
[1733506160576,7.39620439,239.36,239.32,6.4306004]
[1733506160878,9.48250439,239.35,239.32,6.4306004]
[1733506161068,2.0863,239.35,239.34,6.4306004]
[1733506161472,9.48101751,239.35,239.34,6.4306004]
[1733506161668,2.0864,239.34,239.32,6.4306004]
[1733506162368,2.0863,239.35,239.32,6.4306004]
[1733506162570,2.0863,239.35,239.34,6.4306004]
[1733506162777,2.0863,239.35,239.34,2.98038334]
[1733506163169,1.2919,239.42,239.34,2.98038334]
[1733506163170,2.0861,239.39,239.34,2.98038334]
[1733506163377,2.0861,239.39,239.38,6.4306004]
[1733506163671,9.47846967,239.39,239.38,6.4306004]
[1733506163867,7.39236967,239.39,239.38,6.4306004]
[1733506164073,290.2145437,239.47,239.38,6.4306004]
[1733506164270,290.2145437,239.47,239.36,2.12]
[1733506164271,7.38906299,239.46,239.4,6.4306004]
[1733506164467,7.38906299,239.45,239.4,6.4306004]
[1733506164673,7.38906299,239.44,239.42,3.01703415]
[1733506164884,7.38906299,239.43,239.42,3.01703415]
[1733506166174,2.0855,239.45,239.42,3.01703415]
[1733506166369,9.46687578,239.44,239.42,3.01703415]
[1733506166574,290.2145437,239.47,239.4,6.4306004]
[1733506166774,7.38071658,239.46,239.4,6.4306004]
[1733506167075,2.0856,239.44,239.4,6.4306004]
[1733506167677,2.0857,239.43,239.4,6.4306004]
[1733506168573,2.0857,239.43,239.42,6.4306004]
[1733506168880,2.0857,239.43,239.42,3.05280288]
[1733506169079,2.0857,239.43,239.42,0.64512771]
[1733506169276,9.46043069,239.43,239.42,0.64512771]
[1733506170773,9.46043069,239.43,239.42,0.30980014]
[1733506172478,2.0858,239.42,239.36,2.12]
[1733506172681,2.0858,239.42,239.41,6.4306004]
[1733506172877,9.35908524,239.42,239.41,6.4306004]
[1733506175177,7.0,239.32,239.22,4.174]
[1733506175378,13.70388564,239.42,239.06,6.4306004]
[1733506175379,13.24753601,239.31,239.06,6.4306004]
[1733506175575,13.24753601,239.31,239.04,2.12]
[1733506175576,6.4306004,239.25,239.04,2.12]
[1733506175781,6.4306004,239.19,239.05,3.4912]
[1733506175974,2.0886,239.09,239.07,6.4306004]
[1733506176175,2.0886,239.09,238.73,43.42]
[1733506176176,6.4306004,239.17,238.73,43.42]
[1733506176376,6.4306004,239.15,238.74,23.04766077]
[1733506176582,6.4306004,239.13,239.04,6.4306004]
[1733506177678,8.03081057,239.12,239.04,6.4306004]
[1733506177880,6.4306004,239.13,239.04,6.4306004]
[1733506178487,12.19567385,239.14,239.01,2.12]
[1733506178788,2.089,239.05,239.01,2.12]
[1733506180683,1.3187,239.13,238.98,10.07567385]
[1733506180888,2.0893,239.01,238.98,12.19567385]
[1733506181385,2.0893,239.01,238.97,2.12]
[1733506183083,2.12,239.09,238.95,10.07567385]
[1733506183484,2.12,239.09,238.96,2.2]
[1733506183883,10.07567385,239.08,238.96,2.2]
[1733506184784,2.0896,238.98,238.92,10.07567385]
[1733506184985,2.2,239.04,238.91,2.2]
[1733506185286,2.2,239.04,238.87,10.07567385]
[1733506185287,10.07567385,239.02,238.87,10.07567385]
[1733506185492,2.2,239.04,238.9,10.07567385]
[1733506185493,1.3111,239.01,238.9,10.07567385]
[1733506185887,1.3111,239.01,238.91,2.2]
[1733506186292,2.0897,238.97,238.91,2.2]
[1733506187800,2.2,239.04,238.93,10.07567385]
[1733506188192,10.07567385,239.08,238.93,10.07567385]
[1733506188396,1.2918,239.11,238.96,10.07567385]
[1733506188397,2.2,239.07,238.96,10.07567385]
[1733506188599,1.2918,239.11,238.99,10.07567385]
[1733506188898,2.0886,239.09,239.01,2.0893]
[1733506189099,2.0886,239.09,239.02,2.2]
[1733506191203,10.07567385,239.11,238.98,2.551]
[1733506191402,10.07567385,239.11,238.95,2.2]
[1733506192600,10.07567385,239.11,238.96,2.2]
[1733506193502,2.0893,239.01,238.96,2.2]
[1733506194399,12.27567385,239.08,238.96,2.2]
[1733506194602,2.0894,239.0,238.96,2.2]
[1733506195198,2.0894,239.0,238.95,2.2]
[1733506195701,1.2758,239.07,238.95,2.2]
[1733506195909,2.0893,239.02,238.95,2.2]
[1733506196697,2.0893,239.01,238.95,4.2898]
[1733506197102,2.0893,239.01,238.95,2.0840259]
[1733506197299,2.0893,239.01,238.96,2.2]
[1733506198713,2.0892,239.03,238.96,2.2]
[1733506199205,2.0892,239.03,238.96,1.07662815]
[1733506199509,2.0892,239.03,238.91,10.07567385]
[1733506199812,2.0892,239.03,238.92,2.2]
[1733506200014,2.0891,239.04,238.92,2.2]
[1733506200203,1.2758,239.07,238.95,2.0898]
[1733506201007,2.0893,239.02,238.96,2.2]
[1733506201208,2.0893,239.02,238.96,1.08057719]
[1733506201913,1.2758,239.07,238.96,1.08057719]
[1733506202308,2.0892,239.03,238.96,3.17027719]
[1733506202503,2.0892,239.03,238.96,1.08057719]
[1733506203107,2.0892,239.03,238.97,2.0896]
[1733506203303,2.0892,239.03,238.96,1.08057719]
[1733506203709,2.0892,239.03,238.97,2.0896]
[1733506204412,10.07567385,239.12,238.96,1.08057719]
[1733506205309,10.07567385,239.12,239.01,2.0893]
[1733506205613,10.07567385,239.12,239.01,4.2893]
[1733506206016,2.0886,239.09,239.01,4.2893]
[1733506206215,10.07567385,239.12,239.01,4.2893]
[1733506208513,6.44841737,239.1,239.01,10.73771737]
[1733506208811,6.44841737,239.1,239.02,2.0892]
[1733506209417,2.0889,239.07,239.02,2.0892]
[1733506210220,2.0887,239.08,239.01,8.64841737]
[1733506210518,6.44841737,239.14,239.05,6.44841737]
[1733506210812,6.44841737,239.14,239.06,4.2888]
[1733506211017,2.0885,239.11,239.06,4.2888]
[1733506211213,1.24733,239.15,239.09,6.44841737]
[1733506211816,2.0883,239.13,239.09,6.44841737]
[1733506212519,2.0883,239.13,239.06,12.26906424]
[1733506212714,2.0883,239.13,239.09,2.0886]
[1733506213822,2.0882,239.14,239.1,2.0885]
[1733506214214,1.24733,239.15,239.09,10.06906424]
[1733506214420,1.24733,239.15,239.11,2.0884]
[1733506214619,1.24733,239.15,239.09,10.06906424]
[1733506215115,1.24733,239.15,239.12,10.06906424]
[1733506215321,1.2481,239.27,239.12,12.18906424]
[1733506215518,1.2921,239.3,239.18,10.06906424]
[1733506215719,2.0871,239.27,239.22,2.0875]
[1733506215916,1.0385,239.33,239.21,9.10105883]
[1733506216318,2.0869,239.29,239.24,2.0873]
[1733506216819,2.0869,239.29,239.24,12.15636424]
[1733506217021,2.0869,239.29,239.24,14.27636424]
[1733506217219,2.0868,239.3,239.25,2.0872]
[1733506218023,2.12,239.29,239.18,2.12]
[1733506218224,2.12,239.29,239.13,12.70146424]
[1733506218225,3.377,239.29,239.16,10.06906424]
[1733506218424,1.257,239.29,239.16,10.06906424]
[1733506219122,2.0876,239.21,239.16,12.15706424]
[1733506219317,2.12,239.26,239.15,2.12]
[1733506219519,7.99985072,239.25,239.15,2.12]
[1733506219714,12.18906424,239.26,239.15,2.12]
[1733506219920,7.99986234,239.25,239.15,2.12]